[Event "BPB Limburg Open 2019 Group A"]
[Site "Maastricht, Netherlands"]
[Date "2019.06.10"]
[Round "7.9"]
[White "Suvorov, Luca"]
[Black "Monroy, Charles"]
[Result "0-1"]
[TimeControl "2h + 15 sec/move"]
[WhiteFideId "12977071"]
[BlackFideId "621641"]
[WhiteElo "2276"]
[BlackElo "2432"]

1. d4 {[%clk 01:59:16]} {[%emt 00:01:14]} Nf6 {[%clk 02:00:18]} {[%emt
00:00:11]} 2. c4 {[%clk 01:59:12]} {[%emt 00:00:18]} e6 {[%clk 02:00:28]}
{[%emt 00:00:05]} 3. Nc3 {[%clk 01:59:11]} {[%emt 00:00:15]} Bb4 {[%clk
02:00:35]} {[%emt 00:00:10]} 4. e3 {[%clk 01:59:17]} {[%emt 00:00:08]} O-O
{[%clk 02:00:37]} {[%emt 00:00:14]} 5. Nge2 {[%clk 01:59:13]} {[%emt 00:00:18]}
d5 {[%clk 01:59:52]} {[%emt 00:01:00]} 6. a3 {[%clk 01:59:09]} {[%emt
00:00:20]} Be7 {[%clk 01:59:44]} {[%emt 00:00:22]} 7. cxd5 {[%clk 01:59:13]}
{[%emt 00:00:12]} exd5 {[%clk 01:59:30]} {[%emt 00:00:29]} 8. Nf4 {[%clk
01:59:01]} {[%emt 00:00:26]} c6 {[%clk 01:54:29]} {[%emt 00:05:17]} 9. Bd3
{[%clk 01:58:44]} {[%emt 00:00:32]} a5 {[%clk 01:48:06]} {[%emt 00:06:39]} 10.
O-O {[%clk 01:57:40]} {[%emt 00:01:19]} Re8 {[%clk 01:47:11]} {[%emt 00:01:10]}
11. f3 {[%clk 01:56:25]} {[%emt 00:01:29]} Nbd7 {[%clk 01:33:55]} {[%emt
00:13:31]} 12. Rb1 {[%clk 01:40:37]} {[%emt 00:16:03]} Nf8 {[%clk 01:31:23]}
{[%emt 00:02:47]} 13. b4 {[%clk 01:37:36]} {[%emt 00:03:16]} axb4 {[%clk
01:26:16]} {[%emt 00:05:22]} 14. axb4 {[%clk 01:37:41]} {[%emt 00:00:10]} b5
{[%clk 01:26:15]} {[%emt 00:00:16]} 15. Bc2 {[%clk 01:26:59]} {[%emt 00:10:56]}
Ra7 {[%clk 01:19:10]} {[%emt 00:07:21]} 16. Kh1 {[%clk 01:21:11]} {[%emt
00:06:03]} Bd6 {[%clk 01:06:39]} {[%emt 00:12:46]} 17. Nce2 {[%clk 00:48:34]}
{[%emt 00:32:52]} Qe7 {[%clk 00:59:34]} {[%emt 00:07:21]} 18. Bd2 {[%clk
00:46:47]} {[%emt 00:02:02]} Ng6 {[%clk 00:47:50]} {[%emt 00:11:58]} 19. Nd3
{[%clk 00:41:07]} {[%emt 00:05:56]} Bf5 {[%clk 00:44:20]} {[%emt 00:03:45]} 20.
Rc1 {[%clk 00:22:18]} {[%emt 00:19:04]} Ra3 {[%clk 00:36:41]} {[%emt 00:07:55]}
21. Nc5 {[%clk 00:16:51]} {[%emt 00:05:42]} Bxc2 {[%clk 00:36:39]} {[%emt
00:00:15]} 22. Rxc2 {[%clk 00:16:56]} {[%emt 00:00:11]} Rea8 {[%clk 00:31:14]}
{[%emt 00:05:40]} 23. Nc1 {[%clk 00:16:04]} {[%emt 00:01:08]} h5 {[%clk
00:25:57]} {[%emt 00:05:32]} 24. N5b3 {[%clk 00:14:40]} {[%emt 00:01:39]} Qc7
{[%clk 00:23:31]} {[%emt 00:02:41]} 25. Na5 {[%clk 00:13:33]} {[%emt 00:01:22]}
Ne7 {[%clk 00:21:19]} {[%emt 00:02:27]} 26. f4 {[%clk 00:11:14]} {[%emt
00:02:34]} Ng4 {[%clk 00:19:02]} {[%emt 00:02:32]} 27. Qe2 {[%clk 00:10:01]}
{[%emt 00:01:28]} Nf5 {[%clk 00:17:43]} {[%emt 00:01:33]} 28. Nd3 {[%clk
00:08:28]} {[%emt 00:01:48]} Qe7 {[%clk 00:16:36]} {[%emt 00:01:22]} 0-1

[Event "BPB Limburg Open 2019 Group A"]
[Site "Maastricht, Netherlands"]
[Date "2019.06.10"]
[Round "7.10"]
[White "Leenhouts, Koen"]
[Black "Engel, Johann"]
[Result "1/2-1/2"]
[TimeControl "2h + 15 sec/move"]
[WhiteFideId "1008439"]
[BlackFideId "12920509"]
[WhiteElo "2432"]
[BlackElo "2165"]

1. d4 {[%clk 02:00:26]} {[%emt 00:00:02]} Nf6 {[%clk 02:00:27]} {[%emt
00:00:04]} 2. c4 {[%clk 02:00:30]} {[%emt 00:00:11]} g6 {[%clk 02:00:38]}
{[%emt 00:00:05]} 3. f3 {[%clk 02:00:35]} {[%emt 00:00:09]} Bg7 {[%clk
02:00:47]} {[%emt 00:00:05]} 4. e4 {[%clk 02:00:41]} {[%emt 00:00:09]} d6
{[%clk 02:00:56]} {[%emt 00:00:07]} 5. Nc3 {[%clk 02:00:49]} {[%emt 00:00:06]}
O-O {[%clk 02:01:07]} {[%emt 00:00:04]} 6. Bg5 {[%clk 02:00:34]} {[%emt
00:00:31]} h6 {[%clk 02:01:00]} {[%emt 00:00:21]} 7. Be3 {[%clk 02:00:43]}
{[%emt 00:00:05]} e5 {[%clk 02:00:43]} {[%emt 00:00:32]} 8. d5 {[%clk
02:00:45]} {[%emt 00:00:13]} Nh5 {[%clk 01:52:35]} {[%emt 00:08:24]} 9. Qd2
{[%clk 02:00:39]} {[%emt 00:00:21]} f5 {[%clk 01:47:57]} {[%emt 00:04:53]} 10.
exf5 {[%clk 02:00:46]} {[%emt 00:00:07]} gxf5 {[%clk 01:47:46]} {[%emt
00:00:26]} 11. O-O-O {[%clk 01:59:55]} {[%emt 00:01:05]} Qf6 {[%clk 01:35:44]}
{[%emt 00:12:18]} 12. Bd3 {[%clk 01:59:55]} {[%emt 00:00:14]} Bd7 {[%clk
01:34:58]} {[%emt 00:01:02]} 13. Nge2 {[%clk 01:59:18]} {[%emt 00:00:51]} Na6
{[%clk 01:34:23]} {[%emt 00:00:51]} 14. Rdg1 {[%clk 01:56:19]} {[%emt
00:03:14]} f4 {[%clk 01:26:52]} {[%emt 00:07:47]} 15. Bf2 {[%clk 01:55:48]}
{[%emt 00:00:44]} Nc5 {[%clk 01:23:45]} {[%emt 00:03:23]} 16. Bxc5 {[%clk
01:52:53]} {[%emt 00:03:09]} dxc5 {[%clk 01:23:57]} {[%emt 00:00:04]} 17. Ne4
{[%clk 01:52:59]} {[%emt 00:00:09]} Qe7 {[%clk 01:22:47]} {[%emt 00:01:26]} 18.
g4 {[%clk 01:52:41]} {[%emt 00:00:32]} fxg3 {[%clk 01:10:32]} {[%emt 00:12:30]}
19. N4xg3 {[%clk 01:45:42]} {[%emt 00:07:13]} Qf7 {[%clk 01:03:05]} {[%emt
00:07:43]} 20. Qe3 {[%emt 00:09:08]} Nf4 21. Nxf4 exf4 22. Qe4 Qf6 23. Qh7+ Kf7
24. Ne4 Qxb2+ 25. Kd1 Qa1+ 26. Kd2 Qb2+ 27. Bc2 {[%clk 01:36:49]} Qd4+ {[%clk
00:52:14]} 28. Kc1 {[%clk 01:36:49]} Qa1+ {[%clk 00:52:14]} 29. Kd2 {[%clk
01:36:49]} Qd4+ {[%clk 00:52:14]} 1/2-1/2

[Event "BPB Limburg Open 2019 Group A"]
[Site "Maastricht, Netherlands"]
[Date "2019.06.10"]
[Round "7.11"]
[White "Haast, Mark"]
[Black "Stricker, Florian"]
[Result "1-0"]
[TimeControl "2h + 15 sec/move"]
[WhiteFideId "1021133"]
[BlackFideId "12976385"]
[WhiteElo "2392"]
[BlackElo "2061"]

1. g3 {[%clk 02:00:11]} {[%emt 00:00:17]} Nf6 {[%emt 00:00:25]} 2. Bg2 {[%clk
01:59:55]} {[%emt 00:00:26]} d5 {[%clk 02:00:19]} {[%emt 00:00:06]} 3. c4
{[%clk 01:59:41]} {[%emt 00:00:29]} e6 {[%clk 02:00:28]} {[%emt 00:00:07]} 4.
Nf3 {[%clk 01:59:02]} {[%emt 00:00:53]} c6 {[%clk 02:00:12]} {[%emt 00:00:31]}
5. O-O {[%clk 01:58:49]} {[%emt 00:00:27]} Be7 {[%clk 02:00:25]} {[%emt
00:00:03]} 6. d4 {[%clk 01:58:07]} {[%emt 00:00:56]} O-O {[%clk 01:59:59]}
{[%emt 00:00:42]} 7. Qc2 {[%clk 01:56:58]} {[%emt 00:01:23]} b6 {[%clk
02:00:03]} {[%emt 00:00:12]} 8. Nbd2 {[%clk 01:56:40]} {[%emt 00:00:31]} Ba6
{[%clk 01:59:57]} {[%emt 00:00:21]} 9. b3 {[%clk 01:55:57]} {[%emt 00:00:58]}
Nbd7 {[%clk 01:59:06]} {[%emt 00:01:07]} 10. Bb2 {[%clk 01:55:15]} {[%emt
00:00:57]} Rc8 {[%clk 01:58:55]} {[%emt 00:00:27]} 11. e4 {[%clk 01:54:59]}
{[%emt 00:00:29]} c5 {[%clk 01:58:35]} {[%emt 00:00:36]} 12. exd5 {[%clk
01:54:46]} {[%emt 00:00:27]} exd5 {[%clk 01:58:23]} {[%emt 00:00:28]} 13. Qf5
{[%clk 01:53:36]} {[%emt 00:01:25]} b5 {[%clk 01:30:35]} {[%emt 00:28:04]} 14.
b4 {[%clk 01:21:42]} {[%emt 00:32:08]} bxc4 {[%clk 01:07:32]} {[%emt 00:23:18]}
15. dxc5 {[%clk 01:21:36]} {[%emt 00:00:21]} Nxc5 {[%clk 00:45:27]} {[%emt
00:22:20]} 16. bxc5 {[%clk 01:19:53]} {[%emt 00:01:58]} Qa5 {[%clk 00:35:28]}
{[%emt 00:10:15]} 17. Rfe1 {[%clk 01:13:58]} {[%emt 00:06:09]} Bxc5 {[%clk
00:26:49]} {[%emt 00:08:54]} 18. Bxf6 {[%clk 01:08:45]} {[%emt 00:05:28]} gxf6
{[%clk 00:27:01]} {[%emt 00:00:04]} 19. Qxf6 {[%clk 01:07:32]} {[%emt
00:01:28]} Qb6 {[%clk 00:23:38]} {[%emt 00:03:38]} 20. Qg5+ {[%clk 01:00:18]}
{[%emt 00:07:13]} Kh8 {[%clk 00:22:44]} {[%emt 00:01:10]} 21. Rab1 {[%clk
00:26:48]} {[%emt 00:34:00]} Bxf2+ {[%clk 00:20:43]} {[%emt 00:02:16]} 22. Kh1
{[%clk 00:26:54]} {[%emt 00:00:08]} Qg6 {[%clk 00:20:01]} {[%emt 00:00:58]} 23.
Qe5+ {[%clk 00:25:58]} {[%emt 00:01:10]} f6 {[%clk 00:18:25]} {[%emt 00:01:51]}
24. Qd6 {[%clk 00:24:03]} {[%emt 00:02:10]} Bxe1 {[%clk 00:17:17]} {[%emt
00:01:24]} 25. Rxe1 {[%clk 00:24:10]} {[%emt 00:00:07]} c3 {[%clk 00:17:02]}
{[%emt 00:00:30]} 26. Qxa6 {[%clk 00:24:17]} {[%emt 00:00:07]} cxd2 {[%clk
00:16:23]} {[%emt 00:00:55]} 27. Nxd2 {[%clk 00:24:23]} {[%emt 00:00:08]} Rc7
{[%clk 00:15:16]} {[%emt 00:01:22]} 28. Qd6 {[%clk 00:22:56]} {[%emt 00:01:42]}
Rfc8 {[%clk 00:14:59]} {[%emt 00:00:33]} 29. Qxd5 {[%clk 00:22:42]} {[%emt
00:00:28]} Rc1 {[%clk 00:14:40]} {[%emt 00:00:34]} 30. Rxc1 {[%clk 00:21:25]}
{[%emt 00:01:32]} Rxc1+ {[%clk 00:14:02]} {[%emt 00:00:53]} 31. Nf1 {[%clk
00:21:26]} {[%emt 00:00:13]} Kg7 {[%clk 00:12:44]} {[%emt 00:01:33]} 32. Kg1
{[%clk 00:19:17]} {[%emt 00:02:24]} Qf7 {[%clk 00:11:56]} {[%emt 00:01:03]} 33.
Qxf7+ {[%clk 00:18:13]} {[%emt 00:01:19]} Kxf7 {[%clk 00:12:07]} {[%emt
00:00:05]} 34. Bd5+ {[%clk 00:18:18]} {[%emt 00:00:09]} Ke7 {[%clk 00:12:00]}
{[%emt 00:00:22]} 35. Kf2 {[%clk 00:18:16]} {[%emt 00:00:17]} Rc2+ {[%clk
00:11:38]} {[%emt 00:00:38]} 36. Kf3 {[%clk 00:15:53]} {[%emt 00:02:37]} Kd6
{[%clk 00:10:58]} {[%emt 00:00:56]} 37. Bb3 {[%clk 00:15:28]} {[%emt 00:00:39]}
Rc7 {[%clk 00:10:21]} {[%emt 00:00:53]} 38. Kf4 {[%clk 00:15:23]} {[%emt
00:00:20]} Rc5 {[%clk 00:09:49]} {[%emt 00:00:47]} 39. Ne3 {[%clk 00:13:43]}
{[%emt 00:01:54]} a5 {[%clk 00:08:13]} {[%emt 00:01:52]} 40. g4 {[%clk
00:13:32]} {[%emt 00:00:24]} Kc6 {[%clk 00:05:47]} {[%emt 00:02:41]} 41. Bg8
{[%clk 00:10:30]} {[%emt 00:03:17]} h5 {[%clk 00:05:17]} {[%emt 00:00:46]} 42.
Bd5+ {[%clk 00:10:28]} {[%emt 00:00:16]} Kd6 {[%clk 00:05:08]} {[%emt
00:00:25]} 43. gxh5 {[%clk 00:10:34]} {[%emt 00:00:08]} Rc8 {[%clk 00:05:10]}
{[%emt 00:00:13]} 44. Nf5+ {[%clk 00:07:58]} {[%emt 00:02:51]} Kd7 {[%clk
00:05:09]} {[%emt 00:00:17]} 45. h6 {[%clk 00:07:45]} {[%emt 00:00:27]} Rh8
{[%clk 00:05:12]} {[%emt 00:00:11]} 46. Kg4 {[%clk 00:07:35]} {[%emt 00:00:25]}
1-0

[Event "BPB Limburg Open 2019 Group A"]
[Site "Maastricht, Netherlands"]
[Date "2019.06.10"]
[Round "7.12"]
[White "Klein, Felix"]
[Black "Van Lith, Arjan"]
[Result "1-0"]
[TimeControl "2h + 15 sec/move"]
[WhiteFideId "24600458"]
[BlackFideId "1033433"]
[WhiteElo "2328"]
[BlackElo "2132"]

1. e4 {[%clk 01:58:13]} {[%emt 00:02:16]} c5 {[%clk 02:00:25]} {[%emt
00:00:06]} 2. Nf3 {[%clk 01:58:24]} {[%emt 00:00:04]} Nc6 {[%clk 02:00:35]}
{[%emt 00:00:05]} 3. d4 {[%clk 01:58:35]} {[%emt 00:00:04]} cxd4 {[%clk
02:00:42]} {[%emt 00:00:08]} 4. Nxd4 {[%clk 01:58:46]} {[%emt 00:00:03]} Nf6
{[%clk 02:00:51]} {[%emt 00:00:06]} 5. Nc3 {[%clk 01:58:57]} {[%emt 00:00:05]}
e5 {[%clk 02:01:00]} {[%emt 00:00:05]} 6. Ndb5 {[%clk 01:59:08]} {[%emt
00:00:05]} d6 {[%clk 02:01:07]} {[%emt 00:00:07]} 7. Bg5 {[%clk 01:59:12]}
{[%emt 00:00:11]} a6 {[%clk 02:01:13]} {[%emt 00:00:10]} 8. Na3 {[%clk
01:59:17]} {[%emt 00:00:09]} b5 {[%clk 02:01:23]} {[%emt 00:00:05]} 9. Nd5
{[%clk 01:59:22]} {[%emt 00:00:10]} Be7 {[%clk 02:01:28]} {[%emt 00:00:09]} 10.
Bxf6 {[%clk 01:59:32]} {[%emt 00:00:06]} Bxf6 {[%clk 02:01:39]} {[%emt
00:00:05]} 11. c4 {[%clk 01:59:42]} {[%emt 00:00:05]} b4 {[%clk 02:01:29]}
{[%emt 00:00:24]} 12. Nc2 {[%clk 01:59:52]} {[%emt 00:00:05]} Rb8 {[%clk
02:01:18]} {[%emt 00:00:26]} 13. Qf3 {[%clk 01:55:39]} {[%emt 00:04:28]} Bg5
{[%clk 01:58:08]} {[%emt 00:03:25]} 14. Rd1 {[%clk 01:54:23]} {[%emt 00:01:31]}
Qa5 {[%clk 01:53:42]} {[%emt 00:04:42]} 15. Qb3 {[%clk 01:52:23]} {[%emt
00:02:15]} O-O {[%clk 01:49:26]} {[%emt 00:04:30]} 16. h4 {[%clk 01:39:18]}
{[%emt 00:13:20]} Bh6 {[%clk 01:46:16]} {[%emt 00:03:26]} 17. Be2 {[%clk
01:33:59]} {[%emt 00:05:34]} f5 {[%clk 01:38:10]} {[%emt 00:08:20]} 18. Bf3
{[%clk 01:28:58]} {[%emt 00:05:15]} Qc5 {[%clk 01:25:21]} {[%emt 00:13:05]} 19.
O-O {[%clk 01:27:33]} {[%emt 00:01:40]} fxe4 {[%clk 01:23:00]} {[%emt
00:02:36]} 20. Bxe4 {[%clk 01:27:23]} {[%emt 00:00:25]} Bg4 {[%clk 01:23:00]}
{[%emt 00:00:15]} 21. Rde1 {[%clk 01:22:59]} {[%emt 00:04:38]} Kh8 {[%clk
01:17:31]} {[%emt 00:05:44]} 22. Qd3 {[%clk 01:20:18]} {[%emt 00:02:56]} Rb7
{[%clk 01:14:19]} {[%emt 00:03:28]} 23. Kh1 {[%clk 01:15:30]} {[%emt 00:05:03]}
Rbf7 {[%clk 01:07:55]} {[%emt 00:06:38]} 24. f3 {[%clk 01:12:49]} {[%emt
00:02:55]} Be6 {[%clk 01:05:27]} {[%emt 00:02:44]} 25. b3 {[%clk 01:09:07]}
{[%emt 00:03:57]} g5 {[%clk 01:01:01]} {[%emt 00:04:40]} 26. hxg5 {[%clk
01:05:54]} {[%emt 00:03:28]} Bxg5 {[%clk 01:01:05]} {[%emt 00:00:11]} 27. g4
{[%clk 00:50:34]} {[%emt 00:15:34]} h5 {[%clk 00:48:49]} {[%emt 00:12:31]} 28.
Kg2 {[%clk 00:49:05]} {[%emt 00:01:44]} h4 {[%clk 00:44:30]} {[%emt 00:04:35]}
29. Nde3 {[%clk 00:42:47]} {[%emt 00:06:33]} a5 {[%clk 00:40:18]} {[%emt
00:04:27]} 30. Rh1 {[%clk 00:42:15]} {[%emt 00:00:47]} Kg7 {[%clk 00:38:40]}
{[%emt 00:01:54]} 31. Bf5 {[%clk 00:37:53]} {[%emt 00:04:37]} Bxe3 {[%clk
00:32:22]} {[%emt 00:06:33]} 32. Nxe3 {[%clk 00:35:51]} {[%emt 00:02:16]} Nd4
{[%clk 00:32:26]} {[%emt 00:00:11]} 33. Rxh4 {[%clk 00:27:36]} {[%emt
00:08:30]} Nxf5 {[%clk 00:29:42]} {[%emt 00:02:58]} 34. gxf5 {[%clk 00:27:39]}
{[%emt 00:00:12]} Bxf5 {[%clk 00:29:48]} {[%emt 00:00:09]} 35. Qd2 {[%clk
00:17:20]} {[%emt 00:10:34]} Rf6 {[%clk 00:20:36]} {[%emt 00:09:27]} 36. Nxf5+
{[%clk 00:13:02]} {[%emt 00:04:33]} Rxf5 {[%clk 00:20:37]} {[%emt 00:00:14]} 37.
Reh1 {[%clk 00:12:43]} {[%emt 00:00:33]} Kf7 {[%emt 00:02:22]} 38. Rh7+ {[%clk
00:09:00]} {[%emt 00:03:52]} Ke8 {[%clk 00:14:00]} {[%emt 00:04:51]} 39. Qh6
{[%clk 00:09:14]} {[%emt 00:00:01]} R5f6 {[%clk 00:12:43]} {[%emt 00:01:32]} 40.
Qg7 {[%clk 00:09:11]} {[%emt 00:00:18]} R8f7 {[%clk 00:12:12]} {[%emt
00:00:47]} 41. Qg8+ {[%clk 00:08:26]} {[%emt 00:01:01]} Ke7 {[%clk 00:09:53]}
{[%emt 00:02:34]} 42. Rxf7+ {[%clk 00:04:37]} {[%emt 00:04:03]} Rxf7 {[%clk
00:09:59]} {[%emt 00:00:09]} 43. Rh8 {[%clk 00:04:51]} {[%emt 00:00:02]} Qe3
{[%clk 00:08:30]} {[%emt 00:01:44]} 44. Qd8+ {[%clk 00:04:29]} {[%emt
00:00:38]} Ke6 {[%clk 00:08:38]} {[%emt 00:00:06]} 45. Re8+ {[%clk 00:04:41]}
{[%emt 00:00:03]} Kf5 {[%clk 00:08:33]} {[%emt 00:00:20]} 46. Qc8+ {[%clk
00:04:55]} Kf6 {[%clk 00:03:49]} {[%emt 00:05:00]} 47. Qe6+ {[%clk 00:04:59]}
{[%emt 00:00:10]} Kg7 {[%clk 00:03:46]} {[%emt 00:00:18]} 48. Qg4+ {[%clk
00:05:10]} {[%emt 00:00:04]} Kh7 {[%clk 00:03:55]} {[%emt 00:00:06]} 49. Qg8+
{[%clk 00:05:19]} {[%emt 00:00:07]} Kh6 {[%clk 00:04:01]} {[%emt 00:00:08]} 50.
Re6+ {[%clk 00:05:26]} {[%emt 00:00:08]} Kh5 {[%clk 00:04:09]} {[%emt
00:00:08]} 51. Qg4# {[%clk 00:05:23]} {[%emt 00:00:17]} 1-0